[Event "46th GER-ch Rapid 2020"]
[Site "Plochingen"]
[Date "2020.09.19"]
[Round "5.6"]
[White "Spiess, Gunter"]
[Black "Voigt, Martin"]
[Result "1/2-1/2"]
[ECO "D37"]
[WhiteElo "2391"]
[BlackElo "2289"]
[Annotator "ChessBase"]
[PlyCount "31"]
[EventDate "2020.09.19"]
[EventType "swiss"]
[EventCountry "GER"]
[SourceTitle "playchess.com"]
[Source "ChessBase"]
[SourceQuality "1"]
[TimeControl "900+10"]

1. d4 {[%emt 0:00:00]} d5 {[%emt 0:00:00]} 2. c4 {[%emt 0:00:00]} e6 {[%emt 0:00:00]} 3. Nc3 {[%emt 0:00:17]} a6 {[%emt 0:00:00]} 4. cxd5 {[%emt 0:00:46]} exd5 {[%emt 0:00:00]} 5. Nf3 {[%emt 0:00:09]} Nf6 {[%emt 0:00:07]} 6. Bg5 {[%emt 0:00:05]} Be6 {[%emt 0:00:02]} 7. e3 {[%emt 0:00:16]} Nbd7 {[%emt 0:00:03]} 8. Bd3 {[%emt 0:00:08]} Bd6 {[%emt 0:00:02]} 9. Qc2 {[%emt 0:00:10]} h6 {[%emt 0:00:03]} 10. Bh4 {[%emt 0:00:04]} O-O {[%emt 0:00:05]} 11. a3 {[%emt 0:01:00]} c5 {[%emt 0:00:36]} 12. dxc5 {[%emt 0:01:10]} Nxc5 {[%emt 0:00:03]} 13. O-O {[%emt 0:00:42]} Rc8 {[%emt 0:00:38]} 14. Rfd1 {[%emt 0:00:47]} Qe7 {[%emt 0:02:52]} 15. Rac1 {[%emt 0:02:34]} Rfd8 {[%emt 0:00:10]} 16. b4 {[%emt 0:03:13]} 1/2-1/2

[Event "46th GER-ch Rapid 2020"]
[Site "Plochingen"]
[Date "2020.09.19"]
[Round "5.7"]
[White "Petkidis, Anthony"]
[Black "Hartge, Gedeon"]
[Result "1/2-1/2"]
[ECO "B43"]
[WhiteElo "2406"]
[BlackElo "2234"]
[Annotator "ChessBase"]
[PlyCount "34"]
[EventDate "2020.09.19"]
[EventType "swiss"]
[EventCountry "GER"]
[SourceTitle "playchess.com"]
[Source "ChessBase"]
[SourceQuality "1"]
[TimeControl "900+10"]

1. e4 {[%emt 0:00:00]} c5 {[%emt 0:00:00]} 2. Nf3 {[%emt 0:00:00]} e6 {[%emt 0:00:00]} 3. d4 {[%emt 0:00:00]} cxd4 {[%emt 0:00:00]} 4. Nxd4 {[%emt 0:00:00]} a6 {[%emt 0:00:00]} 5. Nc3 {[%emt 0:00:00]} Qc7 {[%emt 0:00:00]} 6. Bd3 {[%emt 0:00:04]} Nf6 {[%emt 0:00:02]} 7. O-O {[%emt 0:00:07]} d6 {[%emt 0:00:05]} 8. a4 {[%emt 0:00:17]} b6 {[%emt 0:00:03]} 9. f4 {[%emt 0:01:46]} Nbd7 {[%emt 0:00:04]} 10. Qf3 {[%emt 0:00:27]} Bb7 {[%emt 0:00:09]} 11. Kh1 {[%emt 0:00:34]} Be7 {[%emt 0:00:07]} 12. Bd2 {[%emt 0:01:46]} Rc8 {[%emt 0:00:18]} 13. Qh3 {[%emt 0:00:27]} Nc5 {[%emt 0:00:26]} 14. Rae1 {[%emt 0:00:42]} O-O {[%emt 0:01:31]} 15. b4 {[%emt 0:02:32]} Nxd3 {[%emt 0:00:06]} 16. cxd3 {[%emt 0:00:02]} Qd7 {[%emt 0:01:25]} 17. a5 {[%emt 0:00:23]} Rc7 {[%emt 0:00:21]} 1/2-1/2

[Event "46th GER-ch Rapid 2020"]
[Site "Plochingen"]
[Date "2020.09.19"]
[Round "5.8"]
[White "Milare, Tyron"]
[Black "Muranyi, Karl-Jasmin"]
[Result "0-1"]
[ECO "D11"]
[WhiteElo "2176"]
[BlackElo "2331"]
[Annotator "NA"]
[PlyCount "112"]
[EventDate "2020.09.19"]
[EventType "swiss"]
[EventCountry "GER"]
[SourceTitle "playchess.com"]
[Source "ChessBase"]
[SourceQuality "1"]
[TimeControl "900+10"]

1. d4 {[%emt 0:00:00]} d5 {[%emt 0:00:00]} 2. Nf3 {[%emt 0:00:00]} c6 {[%emt 0:00:00]} 3. c4 {[%emt 0:00:00]} Nf6 {[%emt 0:00:00]} 4. e3 {[%emt 0:00:00]} Bg4 {[%emt 0:00:02]} 5. Nc3 {[%emt 0:00:03]} e6 {[%emt 0:00:02]} 6. h3 {[%emt 0:00:05]} Bh5 {[%emt 0:00:01]} 7. Be2 {[%emt 0:00:20]} Nbd7 {[%emt 0:00:04]} 8. cxd5 {[%emt 0:00:06]} exd5 {[%emt 0:00:02]} 9. O-O {[%emt 0:00:13]} Bd6 {[%emt 0:00:45]} 10. a3 {[%emt 0:00:16]} a5 {[%emt 0:00:18]} 11. Rb1 {[%emt 0:00:28]} O-O {[%emt 0:00:22]} 12. b4 {[%emt 0:00:02]} axb4 {[%emt 0:00:01]} 13. axb4 {[%emt 0:00:01]} b5 {[%emt 0:00:12]} 14. Bd2 {[%emt 0:01:25]} Qe7 {[%emt 0:00:19]} 15. Qb3 {[%emt 0:00:11]} Nb6 {[%emt 0:00:18]} 16. Ne1 {[%emt 0:00:58]} Bg6 {[%emt 0:00:58]} 17. Bd3 {[%emt 0:00:07]} Nc4 {[%emt 0:00:06]} 18. Bc1 {[%emt 0:00:13]} Ne4 {[%emt 0:02:19]} 19. Nxe4 {[%emt 0:01:25]} Bxe4 {[%emt 0:00:02]} 20. Bxe4 {[%emt 0:00:03]} dxe4 {[%emt 0:00:15]} 21. Nc2 {[%emt 0:00:13]} Ra4 {[%emt 0:00:05]} 22. Rd1 {[%emt 0:01:03]} Qg5 {[%emt 0:00:11]} 23. Bb2 {[%emt 0:00:34]} Qd5 {[%emt 0:00:40]} 24. Ra1 {[%emt 0:00:23]} Nb6 {[%emt 0:00:56]} 25. Qxd5 {[%emt 0:00:53]} cxd5 {[%emt 0:01:31]} 26. Rxa4 {[%emt 0:00:10]} Nxa4 {[%emt 0:00:02]} 27. Bc1 {[%emt 0:00:58]} Rc8 {[%emt 0:00:35]} 28. Na3 {[%emt 0:00:03]} Nc3 {[%emt 0:00:02]} 29. Rf1 {[%emt 0:05:20]} Ne2+ {[%emt 0:00:48]} 30. Kh1 {[%emt 0:00:01]} Rxc1 {[%emt 0:00:30]} 31. Rxc1 {[%emt 0:00:01]} Nxc1 {[%emt 0:00:01]} 32. Nxb5 {[%emt 0:00:02]} Bxb4 {[%emt 0:00:01]} 33. Nc7 {[%emt 0:00:14]} Be1 {[%emt 0:00:42]} 34. f3 {[%emt 0:00:31]} Ne2 {[%emt 0:01:22]} 35. Nxd5 {[%emt 0:00:14]} Nc3 {[%emt 0:00:34]} 36. Ne7+ {[%emt 0:00:48]} Kf8 {[%emt 0:00:02]} 37. Nf5 {[%emt 0:00:02]} g6 {[%emt 0:00:11]} 38. Nd6 {[%emt 0:00:02]} Bf2 {[%emt 0:00:59]} 39. Nc4 {[%emt 0:00:21]} exf3 {[%emt 0:00:28]} 40. gxf3 {[%emt 0:00:01]} Nd1 {[%emt 0:00:02]} 41. e4 {[%emt 0:00:37]} Bxd4 {[%emt 0:00:02]} 42. Nd2 {[%emt 0:00:18]} Ne3 {[%emt 0:00:16]} 43. Kh2 {[%emt 0:00:28]} Be5+ {[%emt 0:00:15]} 44. Kg1 {[%emt 0:00:02]} Bg3 {[%emt 0:00:06]} 45. Nb3 {[%emt 0:00:18]} Kg7 {[%emt 0:00:10]} 46. Nd4 {[%emt 0:00:03]} h5 {[%emt 0:00:45]} 47. Ne2 {[%emt 0:00:15]} h4 {[%emt 0:00:04]} 48. Nd4 {[%emt 0:00:31]} Kf6 {[%emt 0:00:05]} 49. Nc6 {[%emt 0:00:21]} Kg5 {[%emt 0:00:15]} 50. Nd8 {[%emt 0:00:18]} Kf6 {[%emt 0:00:33]} 51. Nc6 {[%emt 0:00:03]} Nc4 {[%emt 0:00:23]} 52. Kg2 {[%emt 0:00:07]} Ne5 {[%emt 0:00:02]} 53. Nd4 {[%emt 0:00:05]} Nd3 {[%emt 0:00:01]} 54. Ne2 {[%emt 0:00:40]} Nf4+ {[%emt 0:00:06]} 55. Nxf4 {[%emt 0:00:01]} Bxf4 {[%emt 0:00:02]} 56. Kf2 {[%emt 0:00:01]} Ke5 {[%emt 0:00:05]} 0-1

[Event "46th GER-ch Rapid 2020"]
[Site "Plochingen"]
[Date "2020.09.19"]
[Round "5.9"]
[White "Stern, Rene"]
[Black "Schwarz, Frank"]
[Result "1-0"]
[ECO "D65"]
[WhiteElo "2517"]
[BlackElo "2231"]
[Annotator "ChessBase"]
[PlyCount "93"]
[EventDate "2020.09.19"]
[EventType "swiss"]
[EventCountry "GER"]
[SourceTitle "playchess.com"]
[Source "ChessBase"]
[SourceQuality "1"]
[TimeControl "900+10"]

1. Nf3 {[%emt 0:00:00]} d5 {[%emt 0:00:00]} 2. d4 {[%emt 0:00:00]} Nf6 {[%emt 0:00:01]} 3. c4 {[%emt 0:00:00]} e6 {[%emt 0:00:07]} 4. Nc3 {[%emt 0:00:00]} Be7 {[%emt 0:00:14]} 5. Bg5 {[%emt 0:00:00]} a6 {[%emt 0:00:20]} 6. e3 {[%emt 0:00:08]} O-O {[%emt 0:00:04]} 7. Rc1 {[%emt 0:00:14]} Nbd7 {[%emt 0:01:26]} 8. cxd5 {[%emt 0:00:20]} exd5 {[%emt 0:00:14]} 9. Bd3 {[%emt 0:00:12]} c6 {[%emt 0:00:09]} 10. Qc2 {[%emt 0:00:01]} Re8 {[%emt 0:00:40]} 11. O-O {[%emt 0:00:03]} h6 {[%emt 0:00:37]} 12. Bh4 {[%emt 0:00:23]} Ne4 {[%emt 0:01:10]} 13. Bxe7 {[%emt 0:07:01]} Qxe7 {[%emt 0:00:06]} 14. Bxe4 {[%emt 0:00:19]} dxe4 {[%emt 0:00:06]} 15. Nd2 {[%emt 0:00:02]} Nf6 {[%emt 0:00:43]} 16. b4 {[%emt 0:00:24]} Bf5 {[%emt 0:02:06]} 17. a3 {[%emt 0:01:11]} Rad8 {[%emt 0:02:00]} 18. Rfe1 {[%emt 0:00:30]} Bg6 {[%emt 0:01:16]} 19. Nc4 {[%emt 0:00:10]} Nd5 {[%emt 0:01:16]} 20. Ne2 {[%emt 0:00:53]} Qg5 {[%emt 0:00:38]} 21. Ne5 {[%emt 0:00:16]} Bf5 {[%emt 0:00:24]} 22. Ng3 {[%emt 0:00:03]} Bh7 {[%emt 0:00:50]} 23. Qb3 {[%emt 0:01:32]} f6 {[%emt 0:00:58]} 24. f4 {[%emt 0:01:19]} exf3 {[%emt 0:00:47]} 25. Nxf3 {[%emt 0:00:01]} Rxe3 {[%emt 0:00:31]} 26. Qa2 {[%emt 0:01:22]} Qf4 {[%emt 0:00:24]} 27. Rf1 {[%emt 0:00:18]} Bd3 {[%emt 0:00:22]} 28. Rfd1 {[%emt 0:00:15]} Rde8 {[%emt 0:00:17]} 29. Qd2 {[%emt 0:00:20]} Bg6 {[%emt 0:00:32]} 30. a4 {[%emt 0:00:33]} Qd6 {[%emt 0:00:36]} 31. b5 {[%emt 0:00:07]} cxb5 {[%emt 0:00:05]} 32. axb5 {[%emt 0:00:00]} axb5 {[%emt 0:00:02]} 33. Nh4 {[%emt 0:00:16]} Qf4 {[%emt 0:01:00]} 34. Nxg6 {[%emt 0:00:46]} Re1+ {[%emt 0:00:02]} 35. Qxe1 {[%emt 0:00:01]} Rxe1+ {[%emt 0:00:02]} 36. Rxe1 {[%emt 0:00:01]} Qxd4+ {[%emt 0:00:02]} 37. Kh1 {[%emt 0:00:00]} Ne3 {[%emt 0:00:27]} 38. Ne7+ {[%emt 0:00:08]} Kh7 {[%emt 0:00:17]} 39. Nef5 {[%emt 0:00:00]} Nxf5 {[%emt 0:00:02]} 40. Nxf5 {[%emt 0:00:00]} Qf4 {[%emt 0:00:16]} 41. Ng3 {[%emt 0:00:00]} b4 {[%emt 0:00:15]} 42. Rb1 {[%emt 0:00:00]} Qd2 {[%emt 0:00:14]} 43. Re2 {[%emt 0:00:00]} Qd3 {[%emt 0:00:15]} 44. Reb2 {[%emt 0:00:00]} f5 {[%emt 0:00:11]} 45. Rb3 {[%emt 0:00:00]} Qd5 {[%emt 0:00:13]} 46. Rxb4 {[%emt 0:00:00]} Qe5 {[%emt 0:00:11]} 47. Rb5 {[%emt 0:00:00]} 1-0

[Event "46th GER-ch Rapid 2020"]
[Site "Plochingen"]
[Date "2020.09.19"]
[Round "5.10"]
[White "Reichmann, Hendrik"]
[Black "Siebrecht, Sebastian"]
[Result "1/2-1/2"]
[ECO "D02"]
[WhiteElo "2348"]
[BlackElo "2418"]
[Annotator "ChessBase"]
[PlyCount "97"]
[EventDate "2020.09.19"]
[EventType "swiss"]
[EventCountry "GER"]
[SourceTitle "playchess.com"]
[Source "ChessBase"]
[SourceQuality "1"]
[TimeControl "900+10"]

1. d4 {[%emt 0:00:00]} Nf6 {[%emt 0:00:00]} 2. Bf4 {[%emt 0:00:01]} d5 {[%emt 0:00:00]} 3. e3 {[%emt 0:00:04]} c5 {[%emt 0:00:01]} 4. c3 {[%emt 0:00:05]} cxd4 {[%emt 0:00:07]} 5. exd4 {[%emt 0:00:04]} Nc6 {[%emt 0:00:04]} 6. Nd2 {[%emt 0:00:08]} g6 {[%emt 0:02:13]} 7. Ngf3 {[%emt 0:01:53]} Bg7 {[%emt 0:00:32]} 8. Be2 {[%emt 0:01:04]} O-O {[%emt 0:00:11]} 9. h3 {[%emt 0:00:29]} a6 {[%emt 0:00:10]} 10. a4 {[%emt 0:01:37]} Nd7 {[%emt 0:00:29]} 11. O-O {[%emt 0:01:14]} e5 {[%emt 0:00:01]} 12. dxe5 {[%emt 0:00:45]} Ndxe5 {[%emt 0:00:02]} 13. Nb3 {[%emt 0:00:56]} Bf5 {[%emt 0:01:11]} 14. Nxe5 Nxe5 15. Nd4 {[%emt 0:01:01]} Bd7 {[%emt 0:00:21]} 16. Qb3 {[%emt 0:00:39]} Bc6 {[%emt 0:03:35]} 17. Rfe1 {[%emt 0:00:59]} Re8 {[%emt 0:00:01]} 18. Rad1 {[%emt 0:01:08]} Qd7 {[%emt 0:00:29]} 19. Ra1 {[%emt 0:02:34]} Qd6 {[%emt 0:02:15]} 20. Bg3 {[%emt 0:00:19]} Qf6 {[%emt 0:00:22]} 21. Bf1 {[%emt 0:00:12]} h5 {[%emt 0:00:58]} 22. Nxc6 {[%emt 0:00:47]} bxc6 {[%emt 0:00:03]} 23. Bxe5 {[%emt 0:00:06]} Rxe5 {[%emt 0:00:03]} 24. Qb7 {[%emt 0:00:06]} Rae8 {[%emt 0:01:15]} 25. Rxe5 {[%emt 0:00:05]} Rxe5 {[%emt 0:00:05]} 26. Qxa6 {[%emt 0:00:21]} h4 {[%emt 0:00:09]} 27. a5 {[%emt 0:00:24]} Kh7 {[%emt 0:00:58]} 28. Qb6 {[%emt 0:00:54]} Qf4 {[%emt 0:00:56]} 29. Qd4 {[%emt 0:01:26]} Re4 {[%emt 0:00:13]} 30. Qd3 {[%emt 0:00:19]} Be5 {[%emt 0:00:21]} 31. g3 {[%emt 0:00:02]} hxg3 {[%emt 0:00:24]} 32. Qxg3 {[%emt 0:00:02]} Qd2 {[%emt 0:00:43]} 33. Qd3 {[%emt 0:00:29]} Qxb2 {[%emt 0:00:16]} 34. Rb1 {[%emt 0:00:02]} Qa2 {[%emt 0:00:30]} 35. a6 {[%emt 0:00:08]} Rc4 {[%emt 0:00:54]} 36. Rb7 {[%emt 0:00:13]} Kg7 {[%emt 0:00:13]} 37. Qf3 {[%emt 0:00:11]} Rf4 {[%emt 0:00:12]} 38. Qe2 {[%emt 0:00:12]} Qxe2 {[%emt 0:00:26]} 39. Bxe2 {[%emt 0:00:01]} Bxc3 {[%emt 0:00:16]} 40. Kg2 {[%emt 0:00:29]} Ra4 {[%emt 0:00:20]} 41. Kf3 {[%emt 0:00:05]} Bd4 {[%emt 0:00:03]} 42. Rc7 {[%emt 0:00:10]} c5 {[%emt 0:00:06]} 43. Rd7 {[%emt 0:00:01]} Ra3+ {[%emt 0:00:03]} 44. Kg2 {[%emt 0:00:02]} Ra2 {[%emt 0:00:03]} 45. Kf3 {[%emt 0:00:05]} Ra3+ {[%emt 0:00:28]} 46. Kg2 {[%emt 0:00:01]} Ra2 {[%emt 0:00:02]} 47. Kf3 {[%emt 0:00:00]} Ra3+ {[%emt 0:00:18]} 48. Kg2 {[%emt 0:00:01]} Ra2 {[%emt 0:00:08]} 49. Kf3 {[%emt 0:00:01]} 1/2-1/2

[Event "46th GER-ch Rapid 2020"]
[Site "Plochingen"]
[Date "2020.09.21"]
[Round "6.5"]
[White "Braeuning, Rudolf Wilhelm"]
[Black "Hirneise, Jens"]
[Result "1/2-1/2"]
[ECO "C01"]
[WhiteElo "2268"]
[BlackElo "2289"]
[Annotator "ChessBase"]
[PlyCount "89"]
[EventDate "2020.09.19"]
[EventType "swiss"]
[EventCountry "GER"]
[SourceTitle "playchess.com"]
[Source "ChessBase"]
[SourceQuality "1"]
[TimeControl "900+10"]

1. e4 {[%emt 0:00:21]} e6 {[%emt 0:00:00]} 2. d4 {[%emt 0:00:03]} d5 {[%emt 0:00:00]} 3. exd5 {[%emt 0:00:05]} exd5 {[%emt 0:00:03]} 4. Nf3 {[%emt 0:00:02]} Nf6 {[%emt 0:00:03]} 5. Bg5 {[%emt 0:00:08]} Be7 {[%emt 0:00:42]} 6. Bd3 {[%emt 0:01:31]} O-O {[%emt 0:00:17]} 7. O-O {[%emt 0:00:04]} Bg4 {[%emt 0:00:23]} 8. h3 {[%emt 0:00:01]} Bh5 {[%emt 0:00:21]} 9. Nbd2 {[%emt 0:00:02]} Nbd7 {[%emt 0:00:33]} 10. Re1 {[%emt 0:00:05]} Re8 {[%emt 0:00:22]} 11. c3 {[%emt 0:00:11]} c6 {[%emt 0:00:20]} 12. Qc2 {[%emt 0:01:13]} Bg6 {[%emt 0:00:46]} 13. Bxg6 {[%emt 0:00:19]} hxg6 {[%emt 0:00:04]} 14. Re3 {[%emt 0:03:19]} Qc7 {[%emt 0:00:47]} 15. Rae1 {[%emt 0:03:05]} Bd6 {[%emt 0:00:08]} 16. Rxe8+ {[%emt 0:00:11]} Rxe8 {[%emt 0:00:59]} 17. Rxe8+ {[%emt 0:00:02]} Nxe8 {[%emt 0:00:02]} 18. Nf1 {[%emt 0:00:20]} Nef6 {[%emt 0:00:07]} 19. Bxf6 {[%emt 0:00:15]} Nxf6 {[%emt 0:00:52]} 20. Qe2 {[%emt 0:00:09]} Kf8 {[%emt 0:00:30]} 21. Ne5 {[%emt 0:01:12]} Bxe5 {[%emt 0:01:15]} 22. dxe5 {[%emt 0:00:44]} Ne4 {[%emt 0:00:19]} 23. f3 {[%emt 0:00:24]} Nc5 {[%emt 0:00:23]} 24. g3 {[%emt 0:00:35]} Ne6 {[%emt 0:00:26]} 25. Kg2 {[%emt 0:00:07]} Qa5 {[%emt 0:00:12]} 26. a3 {[%emt 0:00:05]} d4 {[%emt 0:00:24]} 27. cxd4 {[%emt 0:00:03]} Nxd4 {[%emt 0:00:04]} 28. Qe4 {[%emt 0:02:36]} Ne6 {[%emt 0:00:20]} 29. h4 {[%emt 0:00:02]} Qb5 {[%emt 0:00:40]} 30. b4 {[%emt 0:00:21]} a5 {[%emt 0:01:10]} 31. Nd2 {[%emt 0:00:03]} axb4 {[%emt 0:00:36]} 32. axb4 {[%emt 0:00:01]} Nc7 {[%emt 0:00:49]} 33. Qd4 {[%emt 0:00:54]} Nd5 {[%emt 0:01:48]} 34. Qa7 {[%emt 0:01:29]} Qe2+ {[%emt 0:01:21]} 35. Kh3 {[%emt 0:00:04]} Qxd2 {[%emt 0:01:01]} 36. Qb8+ {[%emt 0:00:05]} Ke7 {[%emt 0:00:02]} 37. Qd6+ {[%emt 0:00:12]} Ke8 {[%emt 0:00:02]} 38. Qb8+ {[%emt 0:00:04]} Kd7 {[%emt 0:00:07]} 39. Qd6+ {[%emt 0:00:14]} Kc8 {[%emt 0:00:07]} 40. Qf8+ {[%emt 0:00:02]} Kc7 {[%emt 0:00:16]} 41. Qd6+ {[%emt 0:00:01]} Kb6 {[%emt 0:00:20]} 42. Qc5+ {[%emt 0:00:03]} Kc7 {[%emt 0:00:02]} 43. Qd6+ {[%emt 0:00:01]} Kb6 {[%emt 0:00:25]} 44. Qc5+ {[%emt 0:00:02]} Kc7 {[%emt 0:00:02]} 45. Qd6+ {[%emt 0:00:01]} 1/2-1/2

[Event "46th GER-ch Rapid 2020"]
[Site "Plochingen"]
[Date "2020.09.21"]
[Round "6.6"]
[White "Richter, Nils"]
[Black "Spiess, Gunter"]
[Result "1/2-1/2"]
[ECO "D48"]
[WhiteElo "2307"]
[BlackElo "2391"]
[Annotator "ChessBase"]
[PlyCount "81"]
[EventDate "2020.09.19"]
[EventType "swiss"]
[EventCountry "GER"]
[SourceTitle "playchess.com"]
[Source "ChessBase"]
[SourceQuality "1"]
[TimeControl "900+10"]

1. c4 {[%emt 0:00:00]} e6 {[%emt 0:00:00]} 2. Nc3 {[%emt 0:00:00]} d5 {[%emt 0:00:00]} 3. e3 {[%emt 0:00:00]} dxc4 {[%emt 0:00:26]} 4. Bxc4 {[%emt 0:00:09]} a6 {[%emt 0:00:06]} 5. d4 {[%emt 0:00:45]} Nf6 {[%emt 0:00:07]} 6. Nf3 {[%emt 0:00:04]} b5 {[%emt 0:00:05]} 7. Bd3 {[%emt 0:00:20]} Bb7 {[%emt 0:00:04]} 8. O-O {[%emt 0:00:04]} Nbd7 {[%emt 0:00:06]} 9. a3 {[%emt 0:00:49]} c5 {[%emt 0:00:04]} 10. Qe2 {[%emt 0:00:20]} Be7 {[%emt 0:00:10]} 11. Rd1 {[%emt 0:00:06]} Qb6 {[%emt 0:00:07]} 12. dxc5 {[%emt 0:00:58]} Nxc5 {[%emt 0:00:09]} 13. Bc2 {[%emt 0:00:02]} Nce4 {[%emt 0:02:03]} 14. Nxe4 {[%emt 0:00:47]} Nxe4 {[%emt 0:00:32]} 15. Rd4 {[%emt 0:01:40]} f5 {[%emt 0:03:28]} 16. Ne5 {[%emt 0:01:36]} Nf6 {[%emt 0:00:45]} 17. b3 {[%emt 0:01:49]} Rc8 {[%emt 0:01:03]} 18. Bb2 {[%emt 0:00:11]} Bd6 {[%emt 0:03:09]} 19. Rd2 {[%emt 0:01:47]} O-O {[%emt 0:01:26]} 20. Rad1 {[%emt 0:00:08]} Rfd8 {[%emt 0:00:24]} 21. Bb1 {[%emt 0:01:51]} Bd5 {[%emt 0:00:53]} 22. b4 {[%emt 0:02:02]} Qc7 {[%emt 0:00:19]} 23. Nf3 {[%emt 0:00:57]} Ne4 {[%emt 0:00:20]} 24. Rxd5 {[%emt 0:00:28]} exd5 {[%emt 0:00:04]} 25. Ba2 {[%emt 0:00:16]} Qc2 {[%emt 0:00:32]} 26. Bxd5+ {[%emt 0:00:58]} Kh8 {[%emt 0:00:38]} 27. Qxc2 {[%emt 0:00:57]} Rxc2 {[%emt 0:00:01]} 28. Bd4 {[%emt 0:00:16]} Nxf2 {[%emt 0:00:38]} 29. Ng5 {[%emt 0:00:18]} Rd7 {[%emt 0:01:01]} 30. Rf1 {[%emt 0:00:02]} Bxh2+ {[%emt 0:00:21]} 31. Kxh2 {[%emt 0:00:07]} Rxd5 {[%emt 0:00:02]} 32. Ne6 {[%emt 0:00:15]} Kg8 {[%emt 0:00:06]} 33. Bxg7 {[%emt 0:00:17]} Ng4+ {[%emt 0:00:18]} 34. Kh3 {[%emt 0:00:05]} Rd6 {[%emt 0:00:48]} 35. Nd4 {[%emt 0:00:02]} Ra2 {[%emt 0:00:17]} 36. Nxf5 {[%emt 0:00:10]} Rg6 {[%emt 0:00:00]} 37. Bd4 {[%emt 0:00:11]} Nf2+ {[%emt 0:00:04]} 38. Kh2 {[%emt 0:00:12]} Ng4+ {[%emt 0:00:03]} 39. Kh3 {[%emt 0:00:02]} Nf2+ {[%emt 0:00:00]} 40. Kh2 {[%emt 0:00:00]} Ng4+ {[%emt 0:00:01]} 41. Kh3 {[%emt 0:00:01]} 1/2-1/2

[Event "46th GER-ch Rapid 2020"]
[Site "Plochingen"]
[Date "2020.09.21"]
[Round "6.7"]
[White "Voigt, Martin"]
[Black "Petkidis, Anthony"]
[Result "1/2-1/2"]
[ECO "C47"]
[WhiteElo "2289"]
[BlackElo "2406"]
[Annotator "ChessBase"]
[PlyCount "69"]
[EventDate "2020.09.19"]
[EventType "swiss"]
[EventCountry "GER"]
[SourceTitle "playchess.com"]
[Source "ChessBase"]
[SourceQuality "1"]
[TimeControl "900+10"]

1. e4 {[%emt 0:00:00]} e5 {[%emt 0:00:04]} 2. Nf3 {[%emt 0:00:07]} Nc6 {[%emt 0:00:03]} 3. Nc3 {[%emt 0:00:01]} Nf6 {[%emt 0:00:10]} 4. d4 {[%emt 0:00:02]} exd4 {[%emt 0:00:02]} 5. Nxd4 {[%emt 0:00:02]} Bb4 {[%emt 0:00:03]} 6. Nxc6 {[%emt 0:00:02]} bxc6 {[%emt 0:00:02]} 7. Bd3 {[%emt 0:00:02]} d5 {[%emt 0:00:47]} 8. exd5 {[%emt 0:00:03]} O-O {[%emt 0:00:04]} 9. O-O {[%emt 0:00:03]} Bg4 {[%emt 0:00:19]} 10. Be2 {[%emt 0:00:07]} Bxe2 {[%emt 0:00:11]} 11. Nxe2 {[%emt 0:00:03]} cxd5 {[%emt 0:00:06]} 12. Bg5 {[%emt 0:01:24]} c6 {[%emt 0:02:07]} 13. Nd4 {[%emt 0:00:20]} Qd6 {[%emt 0:00:25]} 14. c3 {[%emt 0:03:51]} Bc5 {[%emt 0:00:08]} 15. Qf3 {[%emt 0:00:31]} Ne4 {[%emt 0:00:12]} 16. Be3 {[%emt 0:00:16]} Qd7 {[%emt 0:02:53]} 17. Nf5 {[%emt 0:00:54]} Rad8 {[%emt 0:03:13]} 18. Rad1 {[%emt 0:00:20]} Bxe3 {[%emt 0:00:15]} 19. Nxe3 {[%emt 0:00:18]} Rfe8 {[%emt 0:00:12]} 20. Rd4 {[%emt 0:02:22]} Qb7 {[%emt 0:00:49]} 21. Qe2 {[%emt 0:02:14]} c5 {[%emt 0:00:43]} 22. Rd3 {[%emt 0:00:31]} d4 {[%emt 0:00:30]} 23. cxd4 {[%emt 0:00:04]} cxd4 {[%emt 0:00:01]} 24. Rfd1 {[%emt 0:01:07]} Nxf2 {[%emt 0:00:41]} 25. Qxf2 {[%emt 0:00:56]} dxe3 {[%emt 0:00:12]} 26. Qxe3 {[%emt 0:00:15]} Rb8 {[%emt 0:00:44]} 27. Qf2 {[%emt 0:01:59]} Qxb2 {[%emt 0:00:54]} 28. Qxa7 {[%emt 0:00:19]} h6 {[%emt 0:00:39]} 29. Rf3 {[%emt 0:00:42]} Rb7 {[%emt 0:00:20]} 30. Qa4 {[%emt 0:00:22]} Qe5 {[%emt 0:00:23]} 31. h3 {[%emt 0:00:15]} Rbe7 {[%emt 0:00:16]} 32. Rdf1 {[%emt 0:00:03]} g6 {[%emt 0:00:24]} 33. Qb3 {[%emt 0:00:04]} Rf8 {[%emt 0:00:12]} 34. Kh1 {[%emt 0:00:12]} Kg7 {[%emt 0:00:02]} 35. Qc3 {[%emt 0:00:17]} 1/2-1/2